bitfinex-derivatives/quotes_BTCF0:USTF0_20241103
["timestamp","ask_amount","ask_price","bid_price","bid_amount"]
[1730630251274,0.165642,68477.0,68476.0,0.073043]
[1730630251970,0.073043,68476.0,68474.0,0.07477664]
[1730630252163,0.073045,68474.0,68473.0,0.04337664]
[1730630252467,0.073045,68474.0,68471.0,0.003]
[1730630252468,0.09823979,68474.0,68471.0,0.003]
[1730630252666,0.073048,68472.0,68471.0,0.002]
[1730630253165,0.073049,68471.0,68470.0,0.3608]
[1730630253667,0.073049,68471.0,68470.0,0.43385]
[1730630253970,0.09923979,68474.0,68470.0,0.43385]
[1730630253971,0.0926,68472.0,68470.0,0.3608]
[1730630254161,0.165648,68472.0,68471.0,0.073049]
[1730630254364,0.11447803,68472.0,68471.0,0.073049]
[1730630254564,0.07061805,68472.0,68471.0,0.073049]
[1730630254979,0.07161805,68472.0,68471.0,0.075049]
[1730630255162,0.07261805,68472.0,68471.0,0.076049]
[1730630255669,0.002,68472.0,68471.0,0.24572073]
[1730630256564,0.002,68472.0,68471.0,0.17327801]
[1730630258473,0.002,68472.0,68471.0,0.26033894]
[1730630259479,0.002,68472.0,68471.0,0.17327801]
[1730630260476,0.002,68472.0,68471.0,0.17341051]
[1730630261284,0.002,68472.0,68471.0,0.14852221]
[1730630261475,0.002,68472.0,68471.0,0.24579638]
[1730630262573,0.002,68472.0,68471.0,0.17332317]
[1730630264781,0.002,68472.0,68471.0,0.17336893]
[1730630264977,0.002,68472.0,68471.0,0.26033678]
[1730630265182,0.002,68472.0,68471.0,0.17336893]
[1730630267680,0.002,68472.0,68471.0,0.26037039]
[1730630268082,0.002,68472.0,68471.0,0.17336893]
[1730630268280,0.002,68472.0,68471.0,0.2891367]
[1730630269385,0.17127979,68479.0,68471.0,0.2891367]
[1730630269688,0.17127979,68479.0,68478.0,0.16005297]
[1730630269885,0.17127979,68479.0,68478.0,0.2573729]
[1730630271696,0.17227979,68479.0,68478.0,0.2573729]
[1730630272296,0.17127979,68479.0,68478.0,0.2593729]
[1730630272606,0.17327979,68479.0,68478.0,0.2593729]
[1730630273201,0.17327979,68479.0,68478.0,0.2633729]
[1730630273402,0.17327979,68479.0,68478.0,0.17636093]
[1730630274098,0.17327979,68479.0,68478.0,0.17621017]
[1730630275695,0.13951782,68479.0,68478.0,0.17621017]
[1730630276498,0.13951782,68479.0,68478.0,0.26329981]
[1730630279495,0.13951782,68479.0,68478.0,0.17621017]
[1730630280700,0.13951782,68479.0,68478.0,0.29208116]
[1730630281899,0.17543831,68479.0,68478.0,0.29208116]
[1730630283102,0.17543831,68479.0,68478.0,0.17621017]
[1730630283612,0.17543831,68479.0,68478.0,0.29205331]
[1730630286505,0.13951782,68479.0,68478.0,0.29205331]
[1730630287512,0.07504,68479.0,68478.0,0.29205331]
[1730630288011,0.002,68479.0,68478.0,0.29205331]
[1730630289713,0.07504,68479.0,68478.0,0.29205331]
[1730630291005,0.07504,68479.0,68478.0,0.29187474]
[1730630294927,0.07504,68479.0,68478.0,0.21883374]
[1730630295424,0.07504,68479.0,68478.0,0.12173636]
[1730630295626,0.07504,68479.0,68478.0,0.21929982]
[1730630296028,0.07504,68479.0,68478.0,0.29234082]
[1730630298023,0.07504,68479.0,68478.0,0.17635101]
[1730630298224,0.07504,68479.0,68478.0,0.29231881]
[1730630298424,0.19199818,68479.0,68478.0,0.1950088]
[1730630298629,0.19199818,68479.0,68478.0,0.079041]
[1730630299528,0.14715896,68479.0,68478.0,0.079041]
[1730630299919,0.14715896,68479.0,68478.0,0.006]
[1730630300120,0.19202076,68479.0,68478.0,0.006]
[1730630300524,0.14718141,68479.0,68478.0,0.006]
[1730630301123,0.19202076,68479.0,68478.0,0.006]
[1730630301319,0.14718141,68479.0,68478.0,0.006]
[1730630301530,0.19202076,68479.0,68478.0,0.006]
[1730630303430,0.191958,68479.0,68478.0,0.006]
[1730630304926,0.19172584,68479.0,68478.0,0.006]
[1730630305531,0.07504,68479.0,68478.0,0.19043598]
[1730630307726,0.07504,68479.0,68478.0,0.26347698]
[1730630308732,0.07504,68479.0,68478.0,0.17637558]
[1730630312453,0.07504,68479.0,68478.0,0.17642319]
[1730630313341,0.002,68479.0,68478.0,0.17642319]
[1730630313531,0.03530867,68479.0,68478.0,0.142441]
[1730630317441,0.11887343,68479.0,68478.0,0.142441]
[1730630318144,0.02413587,68479.0,68478.0,0.580521]
[1730630318337,0.00219107,68484.0,68483.0,0.073036]
[1730630318540,0.00219107,68484.0,68483.0,0.13751382]
[1730630319040,0.04702543,68484.0,68483.0,0.13751382]
[1730630319647,0.3608,68485.0,68483.0,0.13751382]
[1730630319960,0.3608,68485.0,68484.0,0.073035]
[1730630320549,0.3608,68485.0,68484.0,0.25781198]
[1730630320856,0.09365168,68493.0,68492.0,0.073026]
[1730630321161,0.09365168,68493.0,68492.0,0.17070288]
[1730630322837,0.09365168,68493.0,68492.0,0.20200288]
[1730630323246,0.09365168,68493.0,68492.0,0.17671482]
[1730630323247,0.10165168,68493.0,68492.0,0.17671482]
[1730630323448,0.10165168,68493.0,68492.0,0.27380672]
[1730630323652,0.11065168,68493.0,68492.0,0.27380672]
[1730630324238,0.11065168,68493.0,68492.0,0.104326]
[1730630324648,0.11065168,68493.0,68492.0,0.17671482]
[1730630325149,0.11065168,68493.0,68492.0,0.104326]
[1730630327443,0.11065168,68493.0,68492.0,0.16218302]
[1730630328348,0.18367668,68493.0,68492.0,0.13088302]
[1730630328545,0.18367668,68493.0,68492.0,0.073026]
[1730630328546,0.29997725,68493.0,68492.0,0.073026]
[1730630330355,0.44583793,68493.0,68492.0,0.04064502]
[1730630330747,0.29997725,68493.0,68492.0,0.04064502]
[1730630332552,0.29942441,68493.0,68492.0,0.04064502]
[1730630335152,0.25459629,68493.0,68492.0,0.04064502]
[1730630335554,0.18367668,68493.0,68492.0,0.04064502]
[1730630336160,0.11065168,68493.0,68492.0,0.07231792]
[1730630336351,0.073026,68492.0,68491.0,0.05786826]
[1730630336551,0.073027,68491.0,68490.0,0.05786826]
[1730630336857,0.073034,68485.0,68484.0,0.07231792]
[1730630337354,0.073034,68485.0,68484.0,0.16997087]
[1730630338953,0.074034,68485.0,68484.0,0.16997087]
[1730630339155,0.074034,68485.0,68484.0,0.09765295]
[1730630339958,0.075034,68485.0,68484.0,0.09765295]
[1730630340163,0.075034,68485.0,68484.0,0.17068795]
[1730630342955,0.075034,68485.0,68484.0,0.09765295]
[1730630344252,0.075034,68485.0,68484.0,0.18464907]
[1730630344454,0.002,68485.0,68484.0,0.18464907]
[1730630344663,0.075034,68485.0,68484.0,0.25768407]
[1730630344966,0.075034,68485.0,68484.0,0.25755047]
[1730630345160,0.075034,68485.0,68484.0,0.17055435]
[1730630345851,0.075034,68485.0,68484.0,0.18441644]
[1730630346052,0.075034,68485.0,68484.0,0.09751935]
[1730630347457,0.13951182,68485.0,68484.0,0.09751935]
[1730630347753,0.075034,68485.0,68484.0,0.09751935]
[1730630349363,0.002,68485.0,68481.0,0.08692874]
[1730630349564,0.073036,68483.0,68482.0,0.09780957]
[1730630349765,0.13751382,68483.0,68482.0,0.09780957]
[1730630350573,0.06447782,68483.0,68480.0,0.073038]
[1730630350872,0.073038,68481.0,68480.0,0.073038]
[1730630353364,0.073038,68481.0,68480.0,0.079038]
[1730630358773,0.073038,68481.0,68480.0,0.13698989]
[1730630358974,0.03591914,68488.0,68480.0,0.12842971]
[1730630359283,0.42527782,68489.0,68487.0,0.0434744]
[1730630359284,0.00076,68489.0,68487.0,0.0434744]
[1730630359466,0.165589,68490.0,68485.0,0.08896549]
[1730630359674,0.165589,68490.0,68489.0,0.11649885]
[1730630359871,0.23006682,68490.0,68489.0,0.073029]
[1730630360870,0.14350682,68490.0,68489.0,0.073029]
[1730630361073,0.24206682,68490.0,68489.0,0.073029]
[1730630365872,0.40984479,68490.0,68489.0,0.073029]
[1730630366675,0.40984479,68490.0,68489.0,0.04121795]
[1730630367378,0.31728479,68490.0,68489.0,0.04121795]
[1730630367680,0.1797775,68490.0,68489.0,0.04121795]
[1730630367884,0.20526638,68490.0,68489.0,0.07669648]
[1730630368079,0.21052483,68490.0,68489.0,0.07669648]
[1730630368279,0.08256171,68490.0,68489.0,0.07669648]
[1730630369276,0.08256171,68490.0,68489.0,0.51473648]
[1730630369477,0.12738766,68490.0,68489.0,0.51473648]
[1730630369685,0.08256171,68490.0,68489.0,0.51473648]
[1730630370188,0.08256171,68490.0,68489.0,0.07669648]
[1730630370583,0.012,68490.0,68489.0,1.09712278]
[1730630370783,0.14601341,68495.0,68494.0,0.073024]
[1730630370985,0.09952484,68512.0,68494.0,0.073024]
[1730630370986,0.14601341,68510.0,68503.0,0.073014]
[1730630371283,0.06447782,68512.0,68510.0,0.073007]
[1730630372075,0.45332,68519.0,68515.0,0.073002]
[1730630372076,0.21049123,68516.0,68515.0,0.073002]
[1730630372280,0.11684464,68516.0,68515.0,0.073002]
[1730630372495,0.06447782,68516.0,68515.0,0.073002]
[1730630372984,0.11684464,68516.0,68515.0,0.073002]
[1730630373391,0.07747782,68516.0,68515.0,0.074002]
[1730630374081,0.09147782,68516.0,68515.0,0.075002]
[1730630378784,0.16447882,68516.0,68515.0,0.075002]
[1730630380784,0.16447882,68516.0,68506.0,0.07301]
[1730630380785,0.27912227,68516.0,68506.0,0.03112304]
[1730630380980,0.06447782,68509.0,68508.0,0.073009]
[1730630381181,0.13430623,68509.0,68508.0,0.073009]
[1730630381389,0.17912127,68509.0,68508.0,0.073009]
[1730630381589,0.06447782,68509.0,68508.0,0.073009]
[1730630381787,0.20975392,68509.0,68508.0,0.433809]
[1730630382294,0.32442474,68509.0,68508.0,0.433809]
[1730630382887,0.17914864,68509.0,68508.0,0.433809]
[1730630383090,0.20614864,68509.0,68508.0,0.435809]
[1730630384295,0.35142474,68509.0,68508.0,0.435809]
[1730630384693,0.20614864,68509.0,68508.0,0.435809]
[1730630385798,0.35142474,68509.0,68508.0,0.435809]
[1730630386188,0.20614864,68509.0,68508.0,0.435809]
[1730630388694,0.09147782,68509.0,68508.0,0.435809]
[1730630388896,0.027,68509.0,68508.0,0.435809]
[1730630393103,0.027,68509.0,68508.0,0.47931069]
[1730630393504,0.027,68509.0,68508.0,0.435809]
[1730630395105,0.027,68509.0,68508.0,0.49377449]
[1730630395916,0.027,68509.0,68508.0,0.72062862]
[1730630396100,0.027,68509.0,68508.0,0.6561508]
[1730630396401,0.027,68509.0,68508.0,0.72062862]
[1730630396809,0.027,68509.0,68508.0,0.79306849]
[1730630397408,0.3608,68522.0,68519.0,0.072998]
[1730630397702,0.433794,68522.0,68519.0,0.072998]
[1730630397908,0.434554,68522.0,68519.0,0.072998]
[1730630398103,0.434554,68522.0,68519.0,0.11639485]
[1730630398902,0.0419,68520.0,68519.0,0.11739485]
[1730630399098,0.0419,68520.0,68519.0,0.073998]
[1730630399511,0.0459,68520.0,68519.0,0.074998]
[1730630400096,0.0459,68520.0,68519.0,0.13286046]
[1730630400516,0.18337382,68520.0,68519.0,0.13286046]
[1730630401405,0.11037782,68520.0,68519.0,0.13286046]
[1730630403511,0.18337382,68520.0,68519.0,0.13286046]
[1730630403708,0.29824905,68520.0,68519.0,0.074998]
[1730630406011,0.23377123,68520.0,68519.0,0.074998]
[1730630406507,0.26427125,68520.0,68519.0,0.074998]
[1730630406714,0.37914648,68520.0,68519.0,0.074998]
[1730630406903,0.23377123,68520.0,68519.0,0.074998]
[1730630407209,0.23377123,68520.0,68519.0,0.002]
[1730630407411,0.073003,68514.0,68513.0,0.433804]
[1730630407611,0.1430648,68514.0,68513.0,0.433804]
[1730630407906,0.143034,68514.0,68513.0,0.073004]
[1730630408112,0.18784914,68514.0,68513.0,0.073004]
[1730630408507,0.18784966,68514.0,68513.0,0.073004]
[1730630408704,0.18984966,68514.0,68513.0,0.073004]
[1730630409214,0.18984977,68514.0,68513.0,0.073004]
[1730630409811,0.19184977,68514.0,68513.0,0.073004]
[1730630411018,0.077003,68514.0,68513.0,0.28744997]
[1730630416823,0.077003,68514.0,68513.0,0.28747433]
[1730630418917,0.077003,68514.0,68513.0,0.073004]
[1730630418918,0.10939184,68514.0,68513.0,0.073004]
[1730630420111,0.03638884,68514.0,68505.0,0.3608]
[1730630420320,0.13748582,68510.0,68509.0,0.073008]
[1730630420521,0.16987466,68510.0,68509.0,0.073008]
[1730630421308,0.17011068,68510.0,68509.0,0.073008]
[1730630422224,0.17011068,68510.0,68509.0,0.074008]
[1730630422428,0.17011068,68510.0,68509.0,0.076008]
[1730630425820,0.06447782,68510.0,68509.0,0.29010577]
[1730630426217,0.13748282,68513.0,68511.0,0.073006]
[1730630426422,0.13748282,68513.0,68512.0,0.21409777]
[1730630427528,0.13848282,68513.0,68512.0,0.21409777]
[1730630428127,0.13948282,68513.0,68512.0,0.21409777]
[1730630428329,0.13948282,68513.0,68512.0,0.28710277]
[1730630430326,0.13948282,68513.0,68512.0,0.073005]
[1730630430527,0.13948282,68513.0,68512.0,0.28654694]
[1730630432837,0.13948282,68513.0,68512.0,0.28662719]
[1730630433927,0.13948282,68513.0,68512.0,0.25746313]
[1730630435340,0.13948282,68513.0,68512.0,0.25747442]
[1730630436335,0.13948282,68513.0,68512.0,0.17047337]
[1730630438542,0.13948282,68513.0,68512.0,0.25749082]
[1730630438742,0.13948282,68513.0,68512.0,0.17047337]
[1730630439040,0.13948282,68513.0,68512.0,0.25749082]
[1730630439449,0.13948282,68513.0,68512.0,0.17047337]
[1730630439744,0.13948282,68513.0,68512.0,0.257527]
[1730630440135,0.13948282,68513.0,68512.0,0.17050955]
[1730630440441,0.13948282,68513.0,68512.0,0.257527]
[1730630440842,0.1724105,68513.0,68512.0,0.073005]
[1730630442538,0.2106506,68513.0,68512.0,0.073005]
[1730630444332,0.10794636,68513.0,68512.0,0.073005]
[1730630444537,0.14619282,68513.0,68512.0,0.073005]
[1730630447140,0.10794636,68513.0,68512.0,0.073005]
[1730630447351,0.14617869,68513.0,68512.0,0.073005]
[1730630449052,0.075005,68513.0,68512.0,0.28678056]
[1730630451055,0.002,68513.0,68512.0,0.28678056]
[1730630451557,0.002,68513.0,68512.0,0.35125838]
[1730630451755,0.002,68513.0,68512.0,0.23500987]
[1730630451950,0.002,68513.0,68512.0,0.35131043]
[1730630452352,0.002,68513.0,68512.0,0.23500987]
[1730630452956,0.002,68513.0,68512.0,0.35134608]
[1730630453653,0.002,68513.0,68512.0,0.23508382]
[1730630453852,0.002,68513.0,68512.0,0.35142881]
[1730630455949,0.07302622,68513.0,68512.0,0.13748282]
[1730630457562,0.07302622,68513.0,68512.0,0.17277734]
[1730630457863,0.002,68513.0,68512.0,0.17277734]
[1730630458047,0.11787456,68513.0,68512.0,0.17277734]
[1730630460459,0.07305978,68513.0,68512.0,0.98667991]
[1730630460761,0.3608,68536.0,68525.0,0.072991]
[1730630460762,0.14537525,68526.0,68525.0,0.072991]
[1730630460962,0.04480735,68526.0,68525.0,0.13746882]
[1730630461264,0.04480522,68526.0,68525.0,0.13746882]
[1730630461955,0.05180522,68526.0,68525.0,0.073991]
[1730630462157,0.05780522,68526.0,68525.0,0.074991]
[1730630462578,0.013,68526.0,68525.0,0.074991]
[1730630462859,0.13079634,68526.0,68525.0,0.074991]
[1730630463264,0.13079634,68526.0,68512.0,0.03577498]
[1730630463265,0.12228416,68526.0,68512.0,0.03577498]
[1730630463558,0.06447782,68513.0,68512.0,0.073005]
[1730630464066,0.06447782,68513.0,68512.0,0.25770631]
[1730630464460,0.06447782,68513.0,68512.0,0.25870631]
[1730630464663,0.13747982,68516.0,68512.0,0.18570131]
[1730630464964,0.13747982,68516.0,68515.0,0.073002]
[1730630465160,0.13747982,68516.0,68515.0,0.17067729]
[1730630468161,0.14147982,68516.0,68515.0,0.17167729]
[1730630468855,0.13747982,68516.0,68515.0,0.17167729]
[1730630469054,0.14147982,68516.0,68515.0,0.17167729]
[1730630470150,0.14147982,68516.0,68515.0,0.074002]
[1730630470350,0.14147982,68516.0,68515.0,0.17158239]
[1730630471065,0.17413363,68516.0,68515.0,0.074002]
[1730630471462,0.21202905,68516.0,68515.0,0.074002]
[1730630472064,0.14755123,68516.0,68515.0,0.074002]
[1730630472468,0.03665381,68516.0,68515.0,0.79578592]
[1730630472657,0.004,68516.0,68515.0,1.15658592]
[1730630472966,0.0321,68526.0,68525.0,0.072991]
[1730630473163,0.06557022,68526.0,68525.0,0.49826882]
[1730630474359,0.07157022,68526.0,68525.0,0.49926882]
[1730630475064,0.07557022,68526.0,68525.0,0.50026882]
[1730630479061,0.0421,68526.0,68525.0,0.53542006]
[1730630480770,0.01,68526.0,68525.0,0.97322006]
[1730630482166,0.007,68526.0,68525.0,0.97222006]
[1730630482364,0.007,68526.0,68525.0,1.19088951]
[1730630482665,0.001,68526.0,68525.0,1.19388951]
[1730630484067,0.001,68526.0,68525.0,0.75608951]
[1730630485963,0.07399,68526.0,68525.0,0.076991]
[1730630486162,0.07399,68526.0,68525.0,0.004]
[1730630486362,0.10699,68526.0,68525.0,0.004]
[1730630488366,0.10699,68526.0,68525.0,0.076991]
[1730630491072,0.001,68526.0,68525.0,0.48113791]
[1730630491276,0.001,68526.0,68525.0,0.49571979]
[1730630491473,0.001,68526.0,68525.0,0.437791]
[1730630494264,0.03444401,68526.0,68525.0,0.437791]
[1730630494572,0.07327407,68526.0,68525.0,0.437791]
[1730630495873,0.14587089,68533.0,68532.0,0.072984]
[1730630496066,0.0319,68542.0,68541.0,0.072974]
[1730630496267,0.12904867,68542.0,68541.0,0.10519054]
[1730630497268,0.13404831,68542.0,68541.0,0.10619054]
[1730630497769,0.24195099,68542.0,68541.0,0.04171272]
[1730630497976,0.24595099,68542.0,68541.0,0.04271272]
[1730630498778,0.08569974,68542.0,68541.0,0.04271272]
[1730630499872,0.13804575,68542.0,68541.0,0.04271272]
[1730630500079,0.08569974,68542.0,68541.0,0.04271272]
[1730630500775,0.08569974,68542.0,68541.0,0.40351272]
[1730630500976,0.08569974,68542.0,68541.0,0.04271272]
[1730630501174,0.0409,68542.0,68541.0,0.10054443]
[1730630501583,0.0409,68542.0,68541.0,0.04271272]
[1730630506178,0.0409,68542.0,68541.0,0.10058341]
[1730630507580,0.0409,68542.0,68541.0,0.04271272]
[1730630508390,0.0409,68542.0,68541.0,0.10057911]
[1730630508590,0.0409,68542.0,68541.0,0.1005777]
[1730630509388,0.15714538,68542.0,68541.0,0.04271272]
[1730630511184,0.15715179,68542.0,68541.0,0.04271272]
[1730630511684,0.26450958,68542.0,68541.0,0.04271272]
[1730630511992,0.15715179,68542.0,68541.0,0.04271272]
[1730630512191,0.18664727,68542.0,68541.0,0.04271272]
[1730630512392,0.26983452,68542.0,68541.0,0.04271272]
[1730630512597,0.30289906,68542.0,68541.0,0.04271272]
[1730630512787,0.15715179,68542.0,68541.0,0.04271272]
[1730630514081,0.23012479,68542.0,68541.0,0.04271272]
[1730630515578,0.39043284,68542.0,68541.0,0.002]
[1730630515784,0.39043284,68542.0,68541.0,0.074974]
[1730630515982,0.23012479,68542.0,68541.0,0.074974]
[1730630516179,0.113873,68542.0,68541.0,0.2446275]
[1730630516591,0.113873,68542.0,68541.0,0.17221652]
[1730630517688,0.17829088,68542.0,68541.0,0.17221652]
[1730630522889,0.113873,68542.0,68541.0,0.17221652]
[1730630525388,0.113873,68542.0,68541.0,0.25924254]
[1730630525788,0.0409,68542.0,68541.0,0.17221652]
[1730630526497,0.113873,68542.0,68541.0,0.17221652]
[1730630529301,0.113873,68542.0,68541.0,0.28842589]
[1730630529693,0.113873,68542.0,68541.0,0.17221652]
[1730630529890,0.113873,68542.0,68541.0,0.28844772]
[1730630530496,0.113873,68542.0,68541.0,0.17221652]
[1730630530697,0.113873,68542.0,68541.0,0.28845736]
[1730630531410,0.18479983,68542.0,68541.0,0.074974]
[1730630532608,0.18476253,68542.0,68541.0,0.074974]
[1730630535905,0.07370333,68542.0,68541.0,0.50019188]
[1730630536496,0.04180333,68542.0,68541.0,0.50019188]
[1730630538397,0.009,68542.0,68541.0,0.74848844]
[1730630538707,0.031,68550.0,68549.0,0.072966]
[1730630538899,0.031,68550.0,68549.0,0.32162934]
[1730630539901,0.036,68550.0,68549.0,0.32262934]
[1730630540102,0.036,68550.0,68549.0,0.32362934]
[1730630540508,0.036,68550.0,68549.0,0.2367962]
[1730630540710,0.036,68550.0,68549.0,0.32362934]
[1730630541210,0.036,68550.0,68549.0,0.2367962]
[1730630541706,0.036,68550.0,68549.0,0.32355967]
[1730630542507,0.036,68550.0,68549.0,0.32355696]
[1730630543609,0.036,68550.0,68549.0,0.2367962]
[1730630543810,0.036,68550.0,68549.0,0.35220121]
[1730630544516,0.036,68550.0,68549.0,0.2367962]
[1730630544710,0.036,68550.0,68549.0,0.2357962]
[1730630545015,0.031,68550.0,68549.0,0.2357962]
[1730630545720,0.031,68550.0,68549.0,0.18510757]
[1730630545721,0.103964,68550.0,68549.0,0.18510757]
[1730630545908,0.103964,68550.0,68549.0,0.04851232]
[1730630545909,0.464764,68550.0,68549.0,0.04851232]
[1730630546108,0.495164,68550.0,68549.0,0.001]
[1730630546508,0.66413973,68550.0,68549.0,0.001]
[1730630546712,0.7721046,68550.0,68549.0,0.001]
[1730630546910,0.66414024,68550.0,68549.0,0.0005558]
[1730630550421,0.6640424,68550.0,68549.0,0.0005558]
[1730630551407,0.61169871,68550.0,68549.0,0.0005558]
[1730630553523,0.495164,68550.0,68549.0,0.0005558]
[1730630554127,0.932804,68550.0,68548.0,0.05785014]
[1730630554314,0.932804,68550.0,68542.0,0.07226779]
[1730630554315,0.072972,68543.0,68542.0,0.07226779]
[1730630554617,0.072973,68542.0,68541.0,0.07226779]
[1730630556122,0.072973,68542.0,68541.0,0.08126779]
[1730630556511,0.072973,68542.0,68541.0,0.08426779]
[1730630557114,0.072973,68542.0,68541.0,0.012]
[1730630557721,0.11040761,68542.0,68541.0,0.003]
[1730630558022,0.11040761,68542.0,68540.0,0.07226779]
[1730630558023,0.072974,68541.0,68540.0,0.07226779]
[1730630558617,0.13739188,68541.0,68540.0,0.07226779]
[1730630558922,0.072975,68540.0,68539.0,0.07226779]
[1730630560810,0.072975,68540.0,68539.0,0.1689535]
[1730630561222,0.072975,68540.0,68539.0,0.1699535]
[1730630561618,0.072975,68540.0,68539.0,0.001]
[1730630561619,0.10648315,68540.0,68539.0,0.001]
[1730630562424,0.145386,68540.0,68539.0,0.001]
[1730630562625,0.10648315,68540.0,68539.0,0.001]
[1730630567634,0.10648315,68540.0,68539.0,0.073976]
[1730630568313,0.10648315,68540.0,68539.0,0.001]
[1730630568825,0.072975,68540.0,68539.0,0.07326779]
[1730630570528,0.072975,68540.0,68539.0,0.17017687]
[1730630570726,0.072975,68540.0,68539.0,0.001]
[1730630572036,0.72244,68544.0,68539.0,0.001]
[1730630572037,0.00084,68544.0,68539.0,0.13768567]
[1730630572328,0.3608,68549.0,68546.0,0.072967]
[1730630572329,0.072968,68547.0,68546.0,0.072967]
[1730630572525,0.072968,68547.0,68546.0,0.30634221]
[1730630573524,0.072968,68547.0,68546.0,0.23406644]
[1730630573833,0.072968,68547.0,68546.0,0.16964856]
[1730630574222,0.073968,68547.0,68546.0,0.16964856]
[1730630574624,0.072968,68547.0,68546.0,0.16964856]
[1730630574823,0.072968,68547.0,68546.0,0.17064856]
[1730630576631,0.072968,68547.0,68546.0,0.073967]
[1730630578636,0.3608,68550.0,68546.0,0.073967]
[1730630578825,0.00218874,68556.0,68549.0,0.13738388]
[1730630579028,0.00218874,68556.0,68555.0,0.18076857]
[1730630579228,0.07514674,68556.0,68555.0,0.18076857]
[1730630579431,0.07514674,68556.0,68555.0,0.18075504]
[1730630579640,0.07514674,68556.0,68555.0,0.13737688]
[1730630580539,0.11105455,68556.0,68555.0,0.13737688]
[1730630581132,0.07514674,68556.0,68555.0,0.13737688]
[1730630581536,0.07514674,68556.0,68555.0,0.13837688]
[1730630581934,0.07614674,68556.0,68555.0,0.13937688]
[1730630582928,0.001,68556.0,68555.0,0.13937688]
[1730630583837,0.03533647,68556.0,68555.0,0.13937688]
[1730630584232,0.07520273,68556.0,68555.0,0.13937688]
[1730630585031,0.07520273,68556.0,68555.0,0.17438193]
[1730630585433,0.07522325,68556.0,68555.0,0.17438193]
[1730630588232,0.07531732,68556.0,68555.0,0.61198193]
[1730630589934,0.07549375,68556.0,68555.0,0.61198193]
[1730630591147,0.00076,68569.0,68568.0,0.072945]
[1730630591334,0.3608,68582.0,68568.0,0.42521788]
[1730630591644,0.433731,68582.0,68576.0,0.13735488]
[1730630592144,0.03476673,68579.0,68576.0,0.13735488]
[1730630592339,0.073811,68582.0,68576.0,0.13735488]
[1730630592539,0.072931,68582.0,68576.0,0.13735488]
[1730630592842,0.06441788,68584.0,68576.0,0.13735488]
[1730630593143,0.06441788,68584.0,68576.0,0.13835488]
[1730630593438,0.00318811,68577.0,68576.0,0.13835488]
[1730630593641,0.00318811,68577.0,68576.0,0.17203397]
[1730630594146,0.00318811,68577.0,68576.0,0.17303397]
[1730630597232,0.3608,68593.0,68576.0,1.24748784]
[1730630597451,0.00088,68593.0,68592.0,0.07292]
[1730630597951,0.072916,68596.0,68595.0,0.072916]
[1730630598144,0.10810681,68596.0,68595.0,0.072916]
[1730630598341,0.072916,68596.0,68595.0,0.072916]
[1730630598848,0.072916,68596.0,68589.0,0.28802533]
[1730630598849,0.12061289,68596.0,68589.0,0.28802533]
[1730630599038,0.072919,68594.0,68593.0,0.072919]
[1730630599241,0.16250928,68594.0,68593.0,0.072919]
[1730630599740,0.35089168,68594.0,68593.0,0.072919]
[1730630599941,0.35089168,68594.0,68589.0,0.15319975]
[1730630600246,0.14600225,68593.0,68592.0,0.07292]
[1730630601243,0.17790215,68593.0,68592.0,0.07292]
[1730630601446,0.25082115,68593.0,68592.0,0.07292]
[1730630601648,0.25082115,68593.0,68592.0,0.07392]
[1730630602044,0.25082115,68593.0,68592.0,0.07492]
[1730630603247,0.24302507,68593.0,68592.0,0.07492]
[1730630603850,0.16599874,68593.0,68592.0,0.83049498]
[1730630604051,0.22823613,68593.0,68592.0,0.83049498]
[1730630604252,0.16599874,68593.0,68592.0,0.82949498]
[1730630604452,0.1136941,68593.0,68592.0,0.83049498]
[1730630605846,0.3608,68597.0,68592.0,0.83049498]
[1730630606152,0.1,68600.0,68599.0,0.072912]
[1730630606948,0.63180797,68600.0,68599.0,0.072912]
[1730630607351,0.63280797,68600.0,68599.0,0.073912]
[1730630608549,0.27200797,68600.0,68599.0,0.002]
[1730630609845,0.27200797,68600.0,68599.0,0.074912]
[1730630610357,0.173911,68600.0,68599.0,0.074912]
[1730630611243,0.27200797,68600.0,68599.0,0.002]
[1730630614247,0.072913,68599.0,68593.0,0.072918]
[1730630614447,0.07292,68594.0,68593.0,0.072918]
[1730630615548,0.07292,68594.0,68593.0,0.074918]
[1730630617160,0.07392,68594.0,68593.0,0.074918]
[1730630617855,0.07392,68594.0,68593.0,0.077918]
[1730630618654,0.07392,68594.0,68593.0,0.076918]
[1730630618857,0.07392,68594.0,68593.0,0.072918]
[1730630619154,0.07392,68594.0,68593.0,0.077918]
[1730630619557,0.07292,68594.0,68593.0,0.077918]
[1730630620360,0.07292,68594.0,68593.0,0.072918]
[1730630620549,0.07292,68594.0,68593.0,0.078918]
[1730630620945,0.10511176,68594.0,68588.0,0.0265303]
[1730630621161,0.15926963,68590.0,68589.0,0.072923]
[1730630621461,0.08451063,68590.0,68589.0,0.072923]
[1730630621759,0.07696842,68590.0,68589.0,0.072923]
[1730630621944,0.11436043,68590.0,68589.0,0.072923]
[1730630622552,0.32671073,68590.0,68589.0,0.072923]
[1730630622758,0.34732751,68590.0,68589.0,0.072923]
[1730630622959,0.18728243,68590.0,68589.0,0.072923]
[1730630623360,0.2395877,68590.0,68589.0,0.072923]
[1730630623660,0.40063278,68590.0,68589.0,0.081923]
[1730630623849,0.90239831,68590.0,68589.0,0.009]
[1730630624053,0.54908243,68590.0,68589.0,0.013]
[1730630624263,0.54908243,68590.0,68589.0,0.085923]
[1730630625454,0.54908243,68590.0,68589.0,0.013]
[1730630625655,0.54908243,68590.0,68589.0,0.085923]
[1730630625956,0.75835608,68590.0,68589.0,0.085923]
[1730630626157,0.598311,68590.0,68589.0,0.085923]
[1730630628961,0.434722,68590.0,68589.0,0.085923]
[1730630629264,0.3618,68590.0,68589.0,0.15028853]
[1730630629471,0.001,68590.0,68589.0,0.15028853]
[1730630632867,0.001,68590.0,68589.0,0.19358338]
[1730630634169,0.001,68590.0,68589.0,0.15028853]
[1730630634367,0.001,68590.0,68589.0,0.19358157]
[1730630634564,0.001,68590.0,68589.0,0.15028853]
[1730630635262,0.001,68590.0,68589.0,0.19358204]
[1730630636064,0.11319,68590.0,68585.0,0.3608]
[1730630636259,0.16449369,68589.0,68585.0,0.3608]